[Event "Czech Open-GM 2022"]
[Site "Pardubice"]
[Date "2022.07.26"]
[Round "5.1"]
[White "Stachowiak, Kamil"]
[Black "Brodowski, Piotr"]
[Result "1/2-1/2"]
[ECO "E61"]
[WhiteElo "2476"]
[BlackElo "2450"]
[Annotator "TA"]
[PlyCount "34"]
[EventDate "2022.07.22"]
[EventType "swiss"]
[EventCountry "CZE"]
[SourceTitle "playchess.com"]
[Source "ChessBase"]
[SourceQuality "1"]
[TimeControl "40/5400+30:1800+30"]

{[%evp 17,18,14,68]} 1. d4 {[%emt 0:00:03]} Nf6 {[%emt 0:00:27]} 2. c4 {[%emt 0:00:14]} g6 {[%emt 0:00:04]} 3. Nc3 {[%emt 0:00:10]} Bg7 {[%emt 0:00:05]} 4. Nf3 {[%emt 0:00:08]} O-O {[%emt 0:00:07]} 5. Bg5 {[%emt 0:00:13]} h6 {[%emt 0:00:18]} 6. Bh4 {[%emt 0:00:18]} d6 {[%emt 0:00:11]} 7. e3 {[%emt 0:00:16]} Nbd7 {[%emt 0:00:28]} 8. Be2 {[%emt 0:00:15]} c6 {[%emt 0:00:39]} 9. O-O $1 {[%emt 0:00:16] 9.0-0 is better than 9.Qc2.} Qc7 {[%emt 0:00:22] [#]} (9... g5 $11 10. Bg3 Nh5) {Predecessor:} 10. h3 $146 {E61: King's Indian: Early deviations for White, including Smyslov System.} e5 11. Qc2 Re8 12. Rfd1 Nf8 13. Rac1 Bf5 14. Qb3 g5 15. Bg3 Ng6 16. c5 dxc5 17. dxe5 Nh5 {0-1 (67) Gozzoli,Y (2583)-Popov,M (2369) Chess.com INT 2016} 1/2-1/2

[Event "Czech Open-GM 2022"]
[Site "Pardubice"]
[Date "2022.07.26"]
[Round "5.2"]
[White "Donchenko, Alexander"]
[Black "Tahay, Alexis"]
[Result "1-0"]
[ECO "D38"]
[WhiteElo "2640"]
[BlackElo "2393"]
[Annotator "TA"]
[PlyCount "53"]
[EventDate "2022.07.22"]
[EventType "swiss"]
[EventCountry "CZE"]
[SourceTitle "playchess.com"]
[Source "ChessBase"]
[SourceQuality "1"]
[TimeControl "40/5400+30:1800+30"]

{[%evp 12,53,20,12,7,12,18,0,5,22,10,8,0,7,0,0,21,0,0,0,14,8,92,93,91,91,96,77,219,223,300,288,454,192,396,414,396,375,446,447,481,489,507,492]} 1. d4 {[%emt 0:00:03]} Nf6 {[%emt 0:00:04]} 2. Nf3 {[%emt 0:00:08]} e6 {[%emt 0:00:33]} 3. c4 {[%emt 0:00:11]} d5 {[%emt 0:00:46]} 4. Nc3 {[%emt 0:00:13]} Bb4 {[%emt 0:00:36]} 5. Qa4+ {[%emt 0:02:23]} Nc6 {[%emt 0:00:29]} 6. e3 {[%emt 0:00:07]} O-O {[%emt 0:00:36]} 7. Bd2 {[%emt 0:00:18]} dxc4 {[%emt 0:02:17] D38: Queen's Gambit Declined: Ragozin Defence (4 Nf3 Bb4).} 8. Bxc4 {[%emt 0:00:30]} Bd6 {[%emt 0:00:07]} 9. Qc2 {[%emt 0:01:13]} (9. Nb5 {with more complications.} e5 10. Bc3 Ne4 11. Bd5) 9... e5 {[%emt 0:01:00] The position is equal.} 10. dxe5 {[%emt 0:00:10]} Nxe5 {[%emt 0:00:05]} 11. Nxe5 {[%emt 0:00:06]} Bxe5 {[%emt 0:00:03]} 12. f4 {[%emt 0:00:16]} Bxc3 {[%emt 0:00:39]} 13. Bxc3 {[%emt 0:00:06]} Ng4 {[%emt 0:00:32] [#]} 14. Qe2 $146 {[%emt 0:00:39]} ({Predecessor:} 14. Bd4 c5 15. Bxc5 Re8 16. O-O Nxe3 17. Bxe3 Rxe3 18. Qf2 Re8 19. Rad1 Qf6 20. f5 {½-½ (37) Xiong,J (2685)-So,W (2778) Chess.com INT 2022}) 14... Re8 {[%emt 0:22:16]} 15. e4 {[%emt 0:00:26]} Qe7 {[%emt 0:06:54]} 16. O-O-O {[%emt 0:13:13]} Nh6 {[%emt 0:09:52]} (16... Nf6 $11) 17. h3 $16 {[%emt 0:16:48] 0x0.001eb84d9c92dp-1022s more active pieces. The black rooks are badly placed.} Be6 {[%emt 0:08:50]} 18. Bd3 {[%emt 0:00:30] This bishop pair is nice.} Bxa2 {[%emt 0:00:30]} 19. g4 $36 {[%emt 0:12:14][%mdl 2048] Qc2 is the strong threat. White is on the roll.} Qc5 {[%emt 0:25:46] [#] A mistake that costs the game.} (19... Bb3 $16) 20. Qc2 $1 $18 {[%emt 0:02:09] And now g5 would win.} ({Weaker is} 20. Bc2 f6 $14) 20... Qb6 {[%emt 0:04:48]} 21. b4 {[%emt 0:04:47]} Rad8 {[%emt 0:06:19]} (21... a5 $142) 22. Rhe1 {[%emt 0:00:36]} (22. Qxa2 $142 Qe3+ 23. Kc2) 22... Rxd3 $2 {[%emt 0:00:08]} (22... Be6 23. g5 Bxh3) 23. Rxd3 ({Don't play} 23. Qxd3 f6 24. e5 f5 $18) 23... Bc4 24. Rg3 {[%emt 0:03:53]} Qd6 {[%emt 0:04:20]} 25. Bd2 {[%emt 0:01:51] White is clearly winning.} Qd4 {[%emt 0:01:59]} 26. Qc3 {[%emt 0:00:52]} Qf2 {[%emt 0:00:14]} 27. g5 {[%emt 0:00:32] Weighted Error Value: White=0.26 (precise) /Black=0.42} 1-0

[Event "Czech Open-GM 2022"]
[Site "Pardubice"]
[Date "2022.07.26"]
[Round "5.3"]
[White "Niedbala, Bartlomiej"]
[Black "Stocek, Jiri"]
[Result "1/2-1/2"]
[ECO "B60"]
[WhiteElo "2381"]
[BlackElo "2548"]
[Annotator "TA"]
[PlyCount "59"]
[EventDate "2022.07.22"]
[EventType "swiss"]
[EventCountry "CZE"]
[SourceTitle "playchess.com"]
[Source "ChessBase"]
[SourceQuality "1"]
[TimeControl "40/5400+30:1800+30"]

{[%evp 11,59,29,48,28,24,30,50,20,27,0,0,-22,-15,-43,0,-57,-57,-60,-52,-54,-26,-32,-32,-39,-4,-12,-8,-37,0,0,8,13,17,0,0,0,34,25,17,18,18,18,53,10,10,8,10,10,10,2]} 1. e4 {[%emt 0:00:34]} c5 {[%emt 0:07:39]} 2. Nf3 {[%emt 0:00:35]} d6 {[%emt 0:00:35]} 3. d4 {[%emt 0:00:17]} cxd4 {[%emt 0:00:06]} 4. Nxd4 {[%emt 0:00:06]} Nf6 {[%emt 0:00:07]} 5. Nc3 {[%emt 0:00:05]} Nc6 {[%emt 0:00:53]} 6. Bg5 {[%emt 0:00:29]} a6 {[%emt 0:03:34]} 7. Nxc6 {[%emt 0:02:48] B60: Sicilian: Richter-Rauzer: Unusual Black 6th moves and 6...Bd7 without 7 Qd2.} bxc6 {[%emt 0:00:05]} 8. Bc4 {[%emt 0:00:06]} Qa5 {[%emt 0:10:13]} 9. Bxf6 {[%emt 0:20:38] White is slightly better.} gxf6 {[%emt 0:04:51]} 10. Qd2 {[%emt 0:01:20]} Rg8 {[%emt 0:03:38] [#]} 11. f4 $146 {[%emt 0:04:12]} ({Predecessor:} 11. f3 Rg6 12. O-O-O Bh6 13. f4 f5 14. Bd3 Rb8 15. exf5 Qb4 {0-1 (15) Sharov,S (1092)-Parente,A (1251) LSS email 2012}) 11... f5 {[%emt 0:07:47] next ...fxe4 is good for Black.} 12. exf5 {[%emt 0:03:06]} Bg7 {[%emt 0:06:39]} (12... Rb8 $5 {[%cal Rb8b2]}) 13. g3 {[%emt 0:05:50]} (13. Bd3 $11) 13... Bxf5 $15 {[%emt 0:04:20]} 14. O-O-O {[%emt 0:02:18]} Rb8 {[%emt 0:05:37]} 15. Bb3 {[%emt 0:08:22]} Bxc3 {[%emt 0:11:56]} 16. Qxc3 {[%emt 0:00:21]} Qxc3 {[%emt 0:00:03]} 17. bxc3 {[%emt 0:00:08]} Rb5 {[%emt 0:03:16]} 18. Rhe1 {[%emt 0:03:59]} Kf8 {[%emt 0:01:14]} 19. Kd2 {[%emt 0:05:41]} h5 {[%emt 0:04:03][%cal Oh5h4]} 20. Bc4 {[%emt 0:03:54]} Ra5 {[%emt 0:05:54]} 21. Rb1 {[%emt 0:00:48] Rb8+ is the strong threat.} d5 {[%emt 0:00:57]} 22. Re5 {[%emt 0:10:01]} e6 {[%emt 0:02:07]} 23. Bd3 {[%emt 0:02:01]} f6 {[%emt 0:02:11]} 24. Rb8+ {[%emt 0:03:56]} Ke7 {[%emt 0:01:49]} 25. Rxg8 {[%emt 0:06:47]} fxe5 {[%emt 0:00:15]} 26. fxe5 {[%emt 0:02:39]} Kf7 {[%emt 0:00:31]} 27. Rg5 {[%emt 0:02:37]} Bxd3 {[%emt 0:01:14] The position is equal.} 28. Kxd3 {[%emt 0:00:06]} h4 {[%emt 0:00:34]} 29. gxh4 {[%emt 0:03:37] [#] Threatens to win with Rg4.} Ra4 {[%emt 0:05:57] Prevents Rg4.} 30. Rh5 {[%emt 0:03:47] Weighted Error Value: White=0.16 (very precise) /Black=0.11 (very precise)} 1/2-1/2

[Event "Czech Open-GM 2022"]
[Site "Pardubice"]
[Date "2022.07.26"]
[Round "5.4"]
[White "Harsha Bharathakoti"]
[Black "Stalmach, Richard"]
[Result "1/2-1/2"]
[ECO "E92"]
[WhiteElo "2547"]
[BlackElo "2363"]
[Annotator "TA"]
[PlyCount "108"]
[EventDate "2022.07.22"]
[EventType "swiss"]
[EventCountry "CZE"]
[SourceTitle "playchess.com"]
[Source "ChessBase"]
[SourceQuality "1"]
[TimeControl "40/5400+30:1800+30"]

{[%evp 18,108,28,3,-6,0,0,0,-17,-24,16,0,8,11,26,30,39,-8,0,-5,19,0,0,-37,27,0,0,-1,0,-67,-72,-49,-38,-71,-52,-71,-68,-57,-43,-45,-51,-76,-68,-45,-51,-58,-62,-41,-25,-25,-25,-25,-25,-25,-25,-25,-25,-25,-52,-58,-4,-100,0,0,-7,-24,0,0,0,0,0,0,0,0,0,0,0,0,0,0,0,0,0,0,0,0,0,0,0,0,0,0,0]} 1. d4 {[%emt 0:01:46]} Nf6 {[%emt 0:00:16]} 2. c4 {[%emt 0:00:28]} g6 {[%emt 0:00:06]} 3. Nc3 {[%emt 0:00:13]} Bg7 {[%emt 0:00:07]} 4. e4 {[%emt 0:00:05]} d6 {[%emt 0:00:04]} 5. Nf3 {[%emt 0:00:08]} O-O {[%emt 0:00:07]} 6. Be2 {[%emt 0:00:06]} e5 {[%emt 0:00:05]} 7. Be3 {[%emt 0:00:06]} exd4 {[%emt 0:00:32]} 8. Nxd4 {[%emt 0:00:11]} Re8 {[%emt 0:00:05]} 9. Qc2 {[%emt 0:02:13]} c6 {[%emt 0:00:09]} 10. O-O {[%emt 0:00:31]} Qe7 {[%emt 0:00:07][%cal Rf6e4] E94: King's Indian: Classical: 6 Be2 e5 7 0-0: Various Black 7th moves.} 11. Rae1 {[%emt 0:01:08] [#]} Nxe4 $146 {[%emt 0:05:00]} ({Predecessor:} 11... Nbd7 12. Qd2 Nc5 13. f3 a5 14. Bf2 Nfd7 15. Rd1 a4 16. Rfe1 Ne5 17. Nc2 Bf8 18. Ne3 {1-0 (36) Harikrishna,P (2686)-Markus,R (2606) Banja Vrucica 2009}) 12. Nxe4 {[%emt 0:00:06]} Qxe4 {[%emt 0:00:04]} 13. Qd2 {[%emt 0:00:05]} Bd7 {[%emt 0:16:03]} 14. b4 {[%emt 0:39:28][%mdl 1024] White has compensation.} Qe7 {[%emt 0:20:49]} 15. Bf3 {[%emt 0:19:22]} Qd8 {[%emt 0:02:39]} 16. Bf4 {[%emt 0:11:41]} Be5 {[%emt 0:01:40]} 17. Bg5 {[%emt 0:01:09] Inhibits Qh4.} (17. Bxe5 $14 dxe5 18. Nb5) 17... Qc8 {[%emt 0:13:36]} 18. c5 {[%emt 0:10:47]} f6 {[%emt 0:01:10]} 19. Bf4 {[%emt 0:07:22]} d5 {[%emt 0:00:22]} 20. Bd1 {[%emt 0:02:51]} Qc7 {[%emt 0:00:44]} (20... a5 $15 21. Bxe5 Rxe5) 21. Bg3 {[%emt 0:00:08]} (21. Bh6 $5 {[%cal Rf2f4]}) 21... Bxg3 {[%emt 0:07:13]} 22. fxg3 {[%emt 0:00:05]} Na6 {[%emt 0:00:08]} 23. Rxf6 {[%emt 0:00:56]} (23. Be2 $11) 23... Rxe1+ $15 {[%emt 0:00:07]} 24. Qxe1 {[%emt 0:00:02]} Re8 {[%emt 0:00:04][%cal Ba8e8,Be8e3,Be3c3,Bc3c4][%mdl 32] Inhibits Qe7.} 25. Qd2 {[%emt 0:01:29]} Qe5 {[%emt 0:00:04]} 26. Rf1 {[%emt 0:00:32]} Qe3+ {[%emt 0:00:49]} 27. Qxe3 {[%emt 0:00:05]} Rxe3 {[%emt 0:00:02]} 28. Nc2 {[%emt 0:00:03]} Rc3 {[%emt 0:01:59]} 29. Rf3 {[%emt 0:00:07] [#]} Rc4 {[%emt 0:11:59]} 30. Rf4 {[%emt 0:00:05] Against Bg4} Bf5 {[%emt 0:00:13]} 31. Rxc4 {[%emt 0:00:37]} dxc4 {[%emt 0:00:09]} 32. a3 {[%emt 0:00:17]} Bxc2 {[%emt 0:01:27]} 33. Bxc2 {[%emt 0:00:01][%mdl 4096] Endgame KB-KN} Kf7 {[%emt 0:01:01] Strongly threatening ...Nc7.} 34. Kf2 {[%emt 0:00:57]} Ke6 {[%emt 0:00:10]} 35. Ke3 {[%emt 0:01:47]} Ke5 {[%emt 0:00:04]} 36. h4 $1 {[%emt 0:00:35]} Nc7 {[%emt 0:00:32] aiming for ...Nb5.} 37. h5 {[%emt 0:00:38]} gxh5 {[%emt 0:01:25]} 38. Bxh7 {[%emt 0:00:06]} Nd5+ {[%emt 0:04:45]} (38... Nb5 $1 $15) 39. Kd2 $11 {[%emt 0:00:02] [#]} Kd4 {[%emt 0:09:59]} ({Better is} 39... Nf6 $1 $17 {[%cal Rf6h7]} 40. Bg6 Ne4+ 41. Ke3 Nxg3) 40. Bg6 {[%emt 0:00:50]} Nf6 {[%emt 0:00:23] Threatens to win with ...Ne4+.} 41. Kc2 {[%emt 0:01:15]} a5 {[%emt 0:00:45]} 42. bxa5 {[%emt 0:06:21] The position is equal.} Kxc5 {[%emt 0:07:27]} 43. Kc3 {[%emt 0:04:52]} Kb5 {[%emt 0:00:10]} 44. Kd4 $1 {[%emt 0:00:45]} Kxa5 {[%emt 0:07:33] Hoping for ...b5.} 45. Kxc4 {[%emt 0:00:06]} Ka4 {[%emt 0:02:17]} 46. Kc5 {[%emt 0:08:21]} Kxa3 {[%emt 0:07:08]} 47. Kb6 {[%emt 0:00:09]} Kb4 {[%emt 0:01:32]} 48. Kxb7 {[%emt 0:00:05]} c5 {[%emt 0:00:02]} 49. Kc6 {[%emt 0:00:19]} Kc4 {[%emt 0:00:04]} 50. Bf7+ {[%emt 0:01:43]} Kd4 {[%emt 0:04:09] White must now prevent ...c4.} 51. Kb5 {[%emt 0:00:26] Against c4} Ne4 {[%emt 0:01:28]} 52. Bxh5 {[%emt 0:00:06]} c4 {[%emt 0:00:07]} 53. Kb4 {[%emt 0:00:12]} c3 {[%emt 0:01:24] And now ...c2 would win.} 54. Kb3 {[%emt 0:00:12]} Nxg3 {[%emt 0:00:10] Weighted Error Value: White=0.09 (flawless) /Black=0.14 (very precise)} 1/2-1/2

[Event "Czech Open-GM 2022"]
[Site "Pardubice"]
[Date "2022.07.26"]
[Round "5.5"]
[White "Dixit, Nikhil"]
[Black "Noe, Christopher"]
[Result "1/2-1/2"]
[ECO "B12"]
[WhiteElo "2325"]
[BlackElo "2505"]
[Annotator "TA"]
[PlyCount "31"]
[EventDate "2022.07.22"]
[EventType "swiss"]
[EventCountry "CZE"]
[SourceTitle "playchess.com"]
[Source "ChessBase"]
[SourceQuality "1"]
[TimeControl "40/5400+30:1800+30"]

{[%evp 9,31,29,43,27,20,16,37,10,53,65,64,61,83,81,77,89,85,83,88,56,55,54,70,67]} 1. e4 {[%emt 0:03:27]} c6 {[%emt 0:00:08]} 2. d4 {[%emt 0:00:32]} d5 {[%emt 0:00:07]} 3. e5 {[%emt 0:00:03]} c5 {[%emt 0:08:05]} 4. dxc5 {[%emt 0:00:43]} Nc6 {[%emt 0:04:00]} 5. Nf3 {[%emt 0:01:12]} Bg4 {[%emt 0:07:23]} 6. c3 {[%emt 0:09:12] B12: Caro-Kann: Advance Variation.} e6 {[%emt 0:00:57]} 7. Be3 {[%emt 0:05:29] 7.b4 is not played anymore.} Nge7 {[%emt 0:18:18]} 8. Bb5 {[%emt 0:08:24] seems to push 8.Nbd2 aside.} Qc7 {[%emt 0:00:44] has lost popularity (8...Nf5).} (8... Qa5 $5 {[%cal Ra5b5]} 9. Ba4 Bxf3 10. gxf3 Nf5 $11) 9. Nbd2 {[%emt 0:02:31]} Nf5 {[%emt 0:28:01]} 10. Bd4 {[%emt 0:06:22]} a6 {[%emt 0:08:45]} 11. Ba4 {[%emt 0:09:39] [#]} Be7 $146 {[%emt 0:05:30]} ({Predecessor:} 11... O-O-O 12. Bxc6 Qxc6 13. b4 Be7 14. a4 g5 15. h3 Bxf3 16. Qxf3 h5 17. Qd3 Qc7 {0-1 (81) Zhigalko,S (2572)-Babazada,K (2431) Chess.com INT 2022}) 12. O-O {[%emt 0:04:11]} Nh4 {[%emt 0:04:49]} 13. h3 {[%emt 0:05:58]} Bh5 {[%emt 0:00:04]} 14. g3 {[%emt 0:06:26]} Nxf3+ {[%emt 0:00:27]} 15. Nxf3 {[%emt 0:00:07]} O-O {[%emt 0:00:31]} 16. Qd3 {[%emt 0:04:53] Weighted Error Value: White=0.06 (flawless) /Black=0.10 (very precise)} 1/2-1/2

[Event "Czech Open-GM 2022"]
[Site "Pardubice"]
[Date "2022.07.26"]
[Round "5.6"]
[White "Hansch, Karsten"]
[Black "Moksh Amit Doshi"]
[Result "0-1"]
[ECO "B94"]
[WhiteElo "2320"]
[BlackElo "2409"]
[Annotator "TA"]
[PlyCount "82"]
[EventDate "2022.07.22"]
[EventType "swiss"]
[EventCountry "CZE"]
[SourceTitle "playchess.com"]
[Source "ChessBase"]
[SourceQuality "1"]
[TimeControl "40/5400+30:1800+30"]

{[%evp 12,82,31,9,23,14,12,10,10,0,40,35,54,16,25,-72,-74,-78,-75,-92,-85,-81,-82,-81,-75,-106,-66,-74,-70,-62,-81,-94,-74,-132,-112,-174,-172,-197,-172,-182,-189,-192,-195,-204,-192,-220,-229,-231,-229,-245,-235,-277,-233,-237,-227,-226,-227,-305,-243,-266,-246,-211,-257,-266,-245,-529,-539,-628,-621,-838,-797,-923,-897]} 1. e4 {[%emt 0:00:03]} c5 {[%emt 0:03:56]} 2. Nf3 {[%emt 0:00:05]} d6 {[%emt 0:00:07]} 3. d4 {[%emt 0:00:04]} cxd4 {[%emt 0:00:05]} 4. Nxd4 {[%emt 0:00:03]} Nf6 {[%emt 0:00:13]} 5. Nc3 {[%emt 0:00:03]} a6 {[%emt 0:00:12]} 6. Bg5 {[%emt 0:00:02]} Nbd7 {[%emt 0:00:50]} 7. Bc4 {[%emt 0:01:19] 7.Qe2 is setting a new trend.} Qb6 {[%emt 0:00:18] B94: Sicilian Najdorf: 6 Bg5 Nbd7.} 8. Bb3 {[%emt 0:00:44]} e6 {[%emt 0:00:20]} 9. Bxf6 {[%emt 0:00:29]} Nxf6 {[%emt 0:00:46] The position is equal.} 10. Qd2 {[%emt 0:00:40] 10.f4 is not played anymore.} Be7 {[%emt 0:09:42]} 11. O-O-O {[%emt 0:01:58]} Qc7 {[%emt 0:02:47] [#]} 12. Rhe1 $146 {[%emt 0:04:39]} (12. g4 $5) ({Predecessor:} 12. f4 b5 13. a3 Bb7 14. Rhe1 O-O 15. g4 Nd7 16. g5 Nc5 17. Kb1 Rfb8 18. f5 {1-0 (33) Vasquez Schroder,R (2441)-Chigaev,M (2598) Chess.com INT 2020}) 12... b5 {[%emt 0:07:24]} 13. Ndxb5 {[%emt 0:01:59]} axb5 $17 {[%emt 0:00:23]} 14. Nxb5 {[%emt 0:00:04]} Qb8 {[%emt 0:01:12]} 15. Nxd6+ {[%emt 0:00:35]} Bxd6 {[%emt 0:00:55]} 16. Qxd6 {[%emt 0:00:23]} Qxd6 {[%emt 0:00:37]} 17. Rxd6 {[%emt 0:00:04]} Ke7 {[%emt 0:03:32]} 18. e5 {[%emt 0:03:59]} Ng4 {[%emt 0:05:08][%cal Og4e5]} 19. Rd4 {[%emt 0:00:50]} h5 {[%emt 0:01:59][%cal Bh7h5,Bh5h4][%mdl 32]} ({Resist} 19... Nxh2 20. Rh4 $16) ({But not} 19... Nxf2 20. Rf4 $16) 20. h3 {[%emt 0:02:05]} Nh6 {[%emt 0:00:05] White is on the road to losing.} ({Don't play} 20... Nxf2 21. Rf4 $16) 21. Red1 {[%emt 0:00:23]} Ra5 {[%emt 0:02:15]} 22. f4 {[%emt 0:03:35]} (22. Rc4 $142 Rxe5 23. Rc7+ Kf6 24. Bc4) 22... Nf5 {[%emt 0:04:41]} 23. R4d3 {[%emt 0:03:03]} (23. Ra4 $17 Rxa4 24. Bxa4) 23... h4 $19 {[%emt 0:01:23]} 24. a3 {[%emt 0:12:51]} Rg8 {[%emt 0:03:54]} 25. Ba2 {[%emt 0:00:33]} g5 {[%emt 0:01:43]} 26. b4 {[%emt 0:11:26]} Ra7 {[%emt 0:01:19]} 27. fxg5 {[%emt 0:03:44]} Rxg5 {[%emt 0:08:35]} 28. R1d2 {[%emt 0:00:42]} Ng3 {[%emt 0:00:14]} 29. Kb2 {[%emt 0:04:39]} Rxe5 {[%emt 0:01:06]} 30. c4 {[%emt 0:00:12]} Ne4 {[%emt 0:03:56]} 31. Re3 {[%emt 0:03:28]} Nxd2 {[%emt 0:03:39]} 32. Rxe5 {[%emt 0:00:09] [#]} f5 $1 {[%emt 0:00:29] Hoping for ...Ne4.} 33. Re2 {[%emt 0:00:16]} Ne4 {[%emt 0:00:21]} 34. Bb1 {[%emt 0:01:15]} Bb7 {[%emt 0:04:07]} 35. Kb3 {[%emt 0:02:52]} Ra8 {[%emt 0:01:07]} 36. b5 {[%emt 0:00:45]} Rd8 {[%emt 0:05:51] Threatens to win with ...Nd2+.} 37. Kb4 {[%emt 0:01:05]} Ng3 {[%emt 0:05:47]} 38. Rf2 {[%emt 0:01:26]} (38. Rb2 {was called for.} Ne4 39. Re2) 38... e5 {[%emt 0:02:44][%cal Be6e5,Be5e4][%mdl 32] Strongly threatening ...e4. Black is clearly winning.} 39. c5 {[%emt 0:05:39]} e4 {[%emt 0:00:11] ...e3 is the strong threat.} 40. c6 {[%emt 0:00:09] [#]} Bxc6 {[%emt 0:00:22][%mdl 512]} 41. bxc6 {[%emt 0:30:04]} (41. Bxe4 Bxe4) 41... Rb8+ {[%emt 0:30:08][%mdl 64] Skewer.  Weighted Error Value: White=0.37/Black=0.09 (flawless)} 0-1